bitfinex/quotes_ETHUSD_20250924
["timestamp","ask_amount","ask_price","bid_price","bid_amount"]
[1758723586882,1e-08,4175.9,4175.8,6.10154274]
[1758723587077,1e-08,4175.9,4175.8,6.39684945]
[1758723587391,1e-08,4175.9,4175.8,20.89684945]
[1758723587603,1e-08,4175.9,4175.8,21.37541511]
[1758723588150,1e-08,4175.9,4175.8,20.44754945]
[1758723588384,1e-08,4175.9,4175.8,20.20434945]
[1758723588599,1e-08,4175.9,4175.8,17.20434945]
[1758723588751,0.24650001,4175.9,4175.8,23.24334945]
[1758723590665,1e-08,4175.9,4175.8,23.24334945]
[1758723591691,0.68640001,4175.9,4175.8,14.5]
[1758723591874,0.68640001,4175.9,4175.8,18.544]
[1758723592576,0.68640001,4175.9,4175.8,20.9387507]
[1758723592577,1e-08,4175.9,4175.8,20.9387507]
[1758723593692,1e-08,4175.9,4175.8,21.1819507]
[1758723594269,1e-08,4175.9,4175.8,21.6312507]
[1758723594472,1e-08,4175.9,4175.8,24.02253685]
[1758723595401,1e-08,4175.9,4175.8,23.33003685]
[1758723595687,1e-08,4175.9,4175.8,25.32503685]
[1758723596190,1e-08,4175.9,4175.8,25.44423685]
[1758723598096,0.24650001,4175.9,4175.8,19.40523685]
[1758723598261,0.68640001,4175.9,4175.8,23.0519507]
[1758723598856,1e-08,4175.9,4175.8,23.0519507]
[1758723599889,1e-08,4175.9,4175.8,23.3007507]
[1758723600396,0.69930001,4175.9,4175.8,20.6572]
[1758723600606,0.69930001,4175.9,4175.8,14.6192]
[1758723600810,0.69930001,4175.9,4175.8,14.5]
[1758723601028,0.69930001,4175.9,4175.8,18.543]
[1758723603909,1e-08,4175.9,4175.8,18.543]
[1758723604273,1e-08,4175.9,4175.8,21.1865507]
[1758723604676,1e-08,4175.9,4175.8,21.0569507]
[1758723604898,1e-08,4175.9,4175.8,18.6622]
[1758723605097,0.69930001,4175.9,4175.8,18.6622]
[1758723605815,0.69930001,4175.9,4175.8,14.6192]
[1758723606107,1.3326169,4175.9,4175.8,18.543]
[1758723606324,1.3336169,4175.9,4175.8,18.543]
[1758723606675,1.21166991,4175.9,4175.8,18.543]
[1758723607816,2.39488999,4175.6,4175.3,0.1192]
[1758723608103,1.21166991,4175.9,4174.8,0.002]
[1758723608104,0.5121699,4175.5,4175.4,4.043]
[1758723608339,0.9640699,4175.5,4175.4,18.543]
[1758723608849,1.2114699,4175.5,4175.4,18.543]
[1758723610013,1.1614699,4175.5,4175.4,18.543]
[1758723610516,0.4621699,4175.5,4175.4,18.7918]
[1758723610746,0.001,4175.9,4175.5,2.39490267]
[1758723610956,0.001,4175.9,4175.6,4.2918]
[1758723611261,0.001,4175.9,4175.7,2.00929348]
[1758723611560,0.001,4175.9,4175.8,6.4377507]
[1758723611735,0.001,4175.9,4175.8,21.1701507]
[1758723611920,0.001,4175.9,4175.8,20.9377507]
[1758723612307,0.001,4175.9,4175.8,23.99363685]
[1758723612919,0.001,4175.9,4175.8,27.90483685]
[1758723616268,0.001,4176.4,4176.0,0.792]
[1758723616563,0.001,4176.4,4176.3,31.73935975]
[1758723616764,0.6420013,4178.3,4176.3,31.73935975]
[1758723616765,0.6420013,4178.4,4176.9,5.39412004]
[1758723616942,0.2673,4177.9,4177.3,17.01309079]
[1758723617146,0.4426,4177.8,4177.3,17.01309079]
[1758723617341,0.2473,4177.7,4177.3,23.05009079]
[1758723617552,0.001,4177.8,4177.3,23.05009079]
[1758723618368,0.2473,4177.7,4177.3,17.01309079]
[1758723618553,0.6899,4177.4,4177.3,20.6562]
[1758723619646,0.6899,4177.4,4177.3,14.6192]
[1758723619849,0.6899,4177.4,4177.3,20.6562]
[1758723620746,3.08373348,4177.4,4177.3,14.5]
[1758723620959,3.20293348,4177.4,4177.3,18.542]
[1758723621157,3.51429898,4177.4,4177.3,18.542]
[1758723621371,4.15630028,4177.4,4177.3,4.042]
[1758723622044,4.66947364,4177.4,4177.3,4.042]
[1758723622257,4.66947364,4177.4,4176.9,14.5]
[1758723622258,2.39406272,4177.0,4176.9,14.5]
[1758723622580,3.08296272,4177.0,4176.9,18.542]
[1758723622934,0.6889,4177.0,4176.9,18.542]
[1758723623233,0.1192,4177.2,4176.9,18.542]
[1758723623438,0.2473,4177.1,4176.9,18.542]
[1758723624075,0.6889,4177.0,4176.9,18.542]
[1758723624438,3.08296272,4177.0,4176.9,18.542]
[1758723624642,0.6889,4177.0,4176.9,18.542]
[1758723625279,0.2473,4177.0,4176.9,18.542]
[1758723625569,0.6889,4177.0,4176.9,18.542]
[1758723625774,0.2473,4177.0,4176.9,18.542]
[1758723625982,3.08296272,4177.0,4176.9,18.542]
[1758723626188,3.08296272,4177.0,4176.9,14.5]
[1758723626345,3.08296272,4177.0,4175.9,0.2324]
[1758723626346,0.6889,4177.0,4176.4,1.994]
[1758723626683,2.39452133,4176.2,4176.1,1.994]
[1758723626858,3.08342133,4176.2,4176.1,5.404]
[1758723627062,0.6889,4176.2,4176.1,5.404]
[1758723627389,3.08342133,4176.2,4176.1,18.542]
[1758723629853,2.39469335,4175.9,4175.8,0.002]
[1758723630082,2.39469335,4175.9,4175.8,4.045]
[1758723630384,3.08359335,4175.9,4175.8,18.545]
[1758723630962,3.08359335,4175.9,4175.8,14.502]
[1758723631162,3.08359335,4175.9,4175.8,18.545]
[1758723631362,0.6889,4175.9,4175.8,18.545]
[1758723632396,0.1192,4176.0,4175.8,18.545]
[1758723632997,2.54366484,4176.2,4175.8,18.545]
[1758723633204,2.39463006,4176.1,4175.8,18.545]
[1758723633492,2.54365727,4176.2,4175.8,18.545]
[1758723633703,2.79095727,4176.2,4175.8,18.545]
[1758723633884,2.79096873,4176.2,4175.8,18.545]
[1758723634080,2.79016873,4176.2,4175.8,18.545]
[1758723634287,2.79019229,4176.2,4175.8,18.545]
[1758723634800,0.6889,4176.1,4175.8,14.502]
[1758723635093,2.39469335,4175.9,4175.8,14.502]
[1758723635296,2.39469335,4175.9,4175.8,0.002]
[1758723635297,3.08359335,4175.9,4175.8,0.002]
[1758723635501,6.59598418,4175.9,4175.8,0.093]
[1758723635671,7.54440914,4175.9,4175.8,0.002]
[1758723635871,7.54440914,4175.9,4175.8,4.046]
[1758723637675,5.90708418,4175.9,4175.8,4.046]
[1758723637873,3.0,4175.9,4175.8,4.046]
[1758723638110,0.1192,4175.9,4175.8,4.046]
[1758723639375,2.51389335,4175.9,4175.8,18.546]
[1758723639588,0.1192,4175.9,4175.8,18.546]
[1758723640701,0.1192,4175.9,4175.8,18.7784]
[1758723640902,0.1192,4176.2,4175.8,21.32791621]
[1758723641104,2.83579578,4176.8,4175.8,21.32791621]
[1758723641105,0.6416277,4177.2,4176.0,2.39463601]
[1758723641304,0.1192,4176.8,4176.1,4.8268]
[1758723641600,0.1192,4176.8,4176.3,2.39444846]
[1758723641771,0.1192,4176.8,4176.4,4.044]
[1758723641971,0.1192,4176.8,4176.5,4.044]
[1758723642373,0.1192,4176.8,4176.5,4.2767]
[1758723642580,0.1192,4176.8,4176.5,6.67104381]
[1758723642788,0.1192,4176.8,4176.6,0.2327]
[1758723642987,0.001,4177.2,4176.7,4.2757]
[1758723643183,0.1192,4177.0,4176.8,16.495]
[1758723643528,0.1192,4177.0,4176.9,4.043]
[1758723644207,0.1192,4177.0,4176.9,18.543]
[1758723645205,3.80404867,4177.0,4176.9,14.5]
[1758723645506,3.80404867,4177.0,4175.9,1.994]
[1758723645507,2.39463601,4176.0,4175.9,1.994]
[1758723645705,2.74993601,4176.0,4175.9,6.037]
[1758723645928,2.39469335,4175.9,4175.8,0.002]
[1758723646230,2.66072701,4175.9,4175.8,4.045]
[1758723646391,2.63079335,4175.9,4175.8,4.045]
[1758723646593,0.2361,4175.9,4175.8,4.045]
[1758723646990,2.97295352,4176.0,4175.8,4.045]
[1758723647408,2.39469335,4175.9,4175.8,4.045]
[1758723647725,2.39469335,4175.9,4175.8,18.545]
[1758723648115,2.97294985,4176.0,4175.8,18.545]
[1758723648499,2.39469335,4175.9,4175.8,18.545]
[1758723649032,3.08989335,4175.9,4175.8,18.545]
[1758723650832,3.08989335,4175.9,4175.8,14.502]
[1758723651131,0.6952,4175.9,4175.8,18.545]
[1758723651305,3.08989335,4175.9,4175.8,18.545]
[1758723652631,3.70454338,4175.9,4175.8,0.002]
[1758723652846,3.0,4175.8,4175.3,0.002]
[1758723653143,6.18698012,4175.4,4175.3,0.002]
[1758723653299,10.74286796,4175.4,4175.3,0.002]
[1758723653493,11.43806796,4175.4,4175.3,0.002]
[1758723653694,13.06792368,4175.4,4175.3,0.002]
[1758723657336,6.18709484,4175.2,4175.1,1e-08]
[1758723657562,6.69998268,4175.2,4175.1,1e-08]
[1758723657756,7.39518268,4175.2,4175.1,1e-08]
[1758723657958,11.43918268,4175.2,4175.1,1e-08]
[1758723658162,13.11363435,4175.2,4175.1,1e-08]
[1758723659243,13.96661285,4175.2,4175.1,1e-08]
[1758723659689,13.11363435,4175.2,4175.1,1e-08]
[1758723660380,9.06963435,4175.2,4175.1,1e-08]
[1758723660584,13.11363435,4175.2,4175.1,1e-08]
[1758723660963,13.11283435,4175.2,4175.1,1e-08]
[1758723662171,12.41763435,4175.2,4175.1,1e-08]
[1758723662489,13.05705022,4175.2,4175.1,1e-08]
[1758723663241,9.01305022,4175.2,4175.1,1e-08]
[1758723663474,8.37363435,4175.2,4175.1,1e-08]
[1758723663781,8.37363435,4175.2,4175.1,0.00200001]
[1758723665600,9.71425022,4175.2,4175.1,0.00200001]
[1758723666016,13.75825022,4175.2,4175.1,0.00200001]
[1758723666323,13.11883435,4175.2,4175.1,0.00200001]
[1758723666475,13.97181285,4175.2,4175.1,0.00200001]
[1758723668189,13.11883435,4175.2,4175.1,0.00200001]
[1758723669683,6.18766863,4174.2,4174.1,1e-08]
[1758723669883,10.74455647,4174.2,4174.1,1e-08]
[1758723670077,11.44575647,4174.2,4174.1,1e-08]
[1758723671619,12.29749375,4174.2,4174.1,1e-08]
[1758723673224,11.44575647,4174.2,4174.1,1e-08]
[1758723673433,12.07456863,4174.2,4174.1,1e-08]
[1758723673937,11.60976863,4174.2,4174.1,1e-08]
[1758723674137,12.07866863,4174.2,4174.1,1e-08]
[1758723675143,8.03466863,4174.2,4174.1,1e-08]
[1758723675324,11.37436863,4174.2,4174.1,1e-08]
[1758723676339,12.07966863,4174.2,4174.1,1e-08]
[1758723676519,13.35727455,4174.2,4174.1,1e-08]
[1758723676922,12.07966863,4174.2,4174.1,1e-08]
[1758723677644,13.35727455,4174.2,4174.1,1e-08]
[1758723679050,11.61076863,4174.2,4174.1,1e-08]
[1758723679637,12.88837455,4174.2,4174.1,1e-08]
[1758723679859,13.35727455,4174.2,4174.1,1e-08]
[1758723680376,12.07966863,4174.2,4174.1,1e-08]
[1758723680771,13.35922201,4174.2,4174.1,1e-08]
[1758723680937,12.89032201,4174.2,4174.1,1e-08]
[1758723681134,8.60892201,4174.2,4174.1,1e-08]
[1758723681339,11.37436863,4174.2,4174.1,1e-08]
[1758723681583,12.07966863,4174.2,4174.1,1e-08]
[1758723684144,11.61076863,4174.2,4174.1,1e-08]
[1758723684344,12.07966863,4174.2,4174.1,0.00200001]
[1758723684780,2.39578342,4174.0,4173.9,0.002]
[1758723684962,7.98313061,4174.0,4173.9,0.4375]
[1758723685285,9.50041175,4174.0,4173.9,0.002]
[1758723685443,9.50041175,4174.0,4173.9,0.231]
[1758723686977,8.2179524,4174.0,4173.9,0.6665]
[1758723687363,7.4259524,4174.0,4173.9,0.6665]
[1758723687560,5.90867126,4174.0,4173.9,0.6665]
[1758723687877,5.90867126,4174.0,4173.9,0.231]
[1758723688082,5.90787126,4174.0,4173.9,0.231]
[1758723688280,5.90787126,4174.0,4173.9,0.6665]
[1758723688507,6.7631765,4174.0,4173.9,0.6665]
[1758723688790,5.90787126,4174.0,4173.9,0.6665]
[1758723689665,4.42887394,4174.0,4173.9,0.231]
[1758723689860,7.70990989,4174.0,4173.9,0.002]
[1758723690185,7.6799626,4174.0,4173.9,0.002]
[1758723690794,5.90867126,4174.0,4173.9,0.002]
[1758723690977,5.90867126,4174.0,4173.9,0.6665]
[1758723691297,6.7639765,4174.0,4173.9,0.231]
[1758723691669,5.90867126,4174.0,4173.9,0.231]
[1758723692272,3.51288784,4174.0,4173.9,0.6665]
[1758723692797,5.90867126,4174.0,4173.9,0.6665]
[1758723693960,5.90867126,4174.0,4173.9,0.002]
[1758723694176,6.7639765,4174.0,4173.9,0.002]
[1758723695071,6.7639765,4174.0,4173.9,0.231]
[1758723695874,6.7639765,4174.0,4173.9,14.731]
[1758723696199,6.7639765,4174.0,4173.9,14.502]
[1758723696393,6.7639765,4174.0,4173.9,14.731]
[1758723696585,5.90867126,4174.0,4173.9,14.731]
[1758723697294,6.7639765,4174.0,4173.9,14.731]
[1758723698215,5.90867126,4174.0,4173.9,14.502]
[1758723698417,3.51288784,4174.0,4173.9,14.502]
[1758723698712,6.76472739,4174.0,4173.9,14.502]
[1758723699017,6.70067126,4174.0,4173.9,0.002]
[1758723699189,12.49435709,4174.0,4173.9,0.002]
[1758723699710,6.30704082,4173.9,4173.6,0.002]
[1758723699891,7.52522866,4173.9,4173.6,0.002]
[1758723700684,15.72311189,4173.9,4173.6,0.002]
[1758723700913,18.11439804,4173.9,4173.6,0.002]
[1758723701777,3.18795562,4173.7,4173.6,0.002]
[1758723701980,10.7747929,4173.7,4173.6,0.002]
[1758723702200,11.42194346,4173.7,4173.6,0.002]
[1758723702402,12.68082146,4173.7,4173.6,0.002]
[1758723705322,0.792,4173.2,4172.9,0.002]
[1758723705522,0.792,4172.6,4172.1,0.522]
[1758723705683,7.04434977,4172.4,4172.1,0.522]
[1758723705889,10.74558997,4172.4,4172.1,0.522]
[1758723706165,12.4670758,4172.4,4172.1,0.522]
[1758723707205,13.3214544,4172.4,4172.1,0.522]
[1758723707414,12.4670758,4172.4,4172.1,0.522]
[1758723707796,13.75054726,4172.4,4172.1,0.522]
[1758723708000,12.4670758,4172.4,4172.1,0.522]
[1758723708225,2.39704683,4171.8,4171.7,0.002]
[1758723708444,10.98563935,4171.8,4171.7,0.002]
[1758723708636,11.83946849,4171.8,4171.7,0.002]
[1758723708922,11.66273935,4171.8,4171.7,0.002]
[1758723709631,12.51578123,4171.8,4171.7,0.002]
[1758723709830,11.83868123,4171.8,4171.7,0.002]
[1758723710253,10.98563935,4171.8,4171.7,0.002]
[1758723711328,11.62641049,4171.8,4171.7,0.2517]
[1758723711649,6.70193467,4171.8,4171.7,0.7183]
[1758723712168,6.70193467,4171.8,4171.7,0.2517]
[1758723714049,5.90993467,4171.8,4171.7,0.7183]
[1758723714352,3.0,4171.8,4171.7,0.7183]
[1758723715213,2.39688382,4172.1,4171.7,0.7183]
[1758723715414,0.51109269,4172.4,4171.8,15.2163]
[1758723715646,0.51109269,4172.4,4171.9,0.7163]
[1758723715813,2.39664469,4172.5,4172.0,0.7163]
[1758723716017,0.51109269,4172.7,4172.1,0.7163]
[1758723716348,2.39661062,4172.6,4172.2,0.7163]
[1758723716556,0.51109269,4172.8,4172.3,0.7163]
[1758723716751,0.1192,4172.4,4172.2,0.01514049]
[1758723717053,0.1192,4172.4,4172.2,2.81795323]
[1758723717353,0.1192,4172.4,4172.3,3.11305958]
[1758723717574,0.1192,4172.4,4172.3,0.7163]
[1758723720172,0.001,4172.7,4172.3,1.43411597]
[1758723720472,0.1192,4172.6,4172.4,15.1928]
[1758723720773,0.1192,4172.6,4172.5,0.6928]
[1758723721440,0.1192,4172.6,4172.5,3.08944469]
[1758723721638,0.001,4172.7,4172.6,2.39658725]
[1758723721874,0.001,4172.7,4172.6,7.14952522]
[1758723722178,0.001,4172.7,4172.6,7.13438725]
[1758723722339,0.001,4172.7,4172.6,21.63438725]
[1758723736396,0.001,4172.7,4172.6,50.09466742]
[1758723736612,0.001,4172.7,4172.6,35.21616642]
[1758723737590,0.001,4173.2,4172.6,39.52616642]
[1758723737800,0.001,4173.2,4173.1,10.58679313]
[1758723738037,0.001,4173.2,4173.1,16.74399313]
[1758723738245,0.001,4173.6,4173.5,2.39607044]
[1758723738396,0.001,4173.6,4173.5,18.18329555]
[1758723738599,0.001,4173.6,4173.5,18.9885705]
[1758723738804,0.001,4173.6,4173.5,21.25607748]
[1758723739144,0.001,4173.6,4173.5,27.29407748]
[1758723739847,0.001,4173.6,4173.5,26.83877748]
[1758723740059,0.001,4173.6,4173.5,24.84277748]
[1758723740195,0.001,4173.6,4173.5,27.29407748]
[1758723742341,0.0002,4173.6,4173.5,27.29407748]
[1758723742547,0.0002,4173.6,4173.5,26.83877748]
[1758723743429,0.0002,4173.6,4173.5,31.60407748]
[1758723744632,1e-08,4173.9,4173.7,0.792]
[1758723744850,0.001,4174.7,4174.2,2.39565464]
[1758723745005,0.001,4174.7,4174.6,30.82326966]
[1758723745202,0.001,4174.7,4174.6,34.86426966]
[1758723745452,0.001,4174.7,4174.6,49.61016966]
[1758723745743,0.001,4174.7,4174.6,20.71705488]
[1758723745950,0.001,4174.7,4174.6,26.75305488]
[1758723747106,0.245,4174.7,4174.6,20.71705488]
[1758723747315,0.001,4174.7,4174.6,26.75305488]
[1758723747709,0.001,4174.7,4174.6,27.23051087]
[1758723748421,0.6794,4174.7,4174.6,20.37289507]
[1758723748634,0.6794,4174.7,4174.6,14.5]
[1758723748799,0.6794,4174.7,4174.6,22.93143908]
[1758723750210,0.001,4174.7,4174.6,22.93143908]
[1758723750823,0.001,4174.7,4174.6,23.17733908]
[1758723751136,0.001,4174.7,4174.6,25.32272523]
[1758723752258,0.6794,4174.7,4174.6,16.89543908]
[1758723752542,0.6794,4174.7,4174.6,22.93043908]
[1758723753429,0.001,4174.7,4174.6,22.93043908]
[1758723754944,0.001,4174.7,4174.6,23.29553908]
[1758723755237,0.001,4174.7,4174.6,26.14212523]
[1758723757803,0.001,4175.1,4175.0,2.39520958]
[1758723758022,0.001,4175.1,4175.0,30.27968805]
[1758723758226,0.02,4175.9,4175.8,2.3947507]
[1758723758504,0.001,4176.2,4175.9,0.792]
[1758723758724,0.001,4176.2,4176.1,5.39457867]
[1758723759103,0.001,4176.2,4176.1,6.09577867]
[1758723759334,0.001,4176.2,4176.1,20.59577867]
[1758723763015,0.001,4176.2,4176.1,19.89457867]
[1758723763236,0.001,4176.2,4176.1,20.12437867]
[1758723763555,0.001,4176.2,4176.1,20.66398571]
[1758723763861,0.001,4176.2,4176.1,20.43418571]
[1758723764335,0.001,4176.2,4176.1,20.66398571]
[1758723764505,0.001,4176.2,4176.1,25.42368571]
[1758723764851,0.001,4176.2,4176.1,26.21568571]
[1758723766127,0.001,4176.2,4176.1,21.90568571]
[1758723768229,0.001,4176.2,4176.1,22.02488571]
[1758723769041,1e-08,4176.9,4176.2,0.792]
[1758723769254,1e-08,4176.9,4176.8,2.39417736]
[1758723769555,0.00020001,4177.2,4177.1,2.39400541]
[1758723769755,0.00020001,4177.2,4177.1,6.43200541]
[1758723770261,0.00020001,4177.2,4177.1,20.93200541]
[1758723770460,0.68220001,4177.2,4177.1,23.32329156]
[1758723770762,0.68220001,4177.2,4177.1,20.93200541]
[1758723772334,0.00020001,4177.2,4177.1,20.93200541]
[1758723772531,0.23540001,4177.2,4177.1,20.93200541]
[1758723772760,0.68220001,4177.2,4177.1,20.93200541]
[1758723773850,0.68220001,4177.2,4177.1,21.40778531]
[1758723774570,0.68220001,4177.2,4177.1,23.79907146]
[1758723776053,0.68220001,4177.2,4177.1,17.36978531]
[1758723776280,0.68220001,4177.2,4177.1,23.40078531]
[1758723777761,0.00020001,4177.2,4177.1,23.40078531]
[1758723777941,0.68220001,4177.2,4177.1,23.40078531]
[1758723778468,0.00020001,4177.2,4177.1,23.40078531]
[1758723778680,0.00020001,4177.2,4177.1,25.79207146]
[1758723779035,0.00020001,4177.2,4177.1,25.91127146]
[1758723779770,0.24690001,4177.2,4177.1,25.91127146]
[1758723779973,0.00020001,4177.2,4177.1,25.91127146]
[1758723780273,0.68210001,4177.2,4177.1,25.91127146]
[1758723780468,0.68210001,4177.2,4177.1,23.51998531]
[1758723780679,0.68210001,4177.2,4177.1,23.51898531]
[1758723780974,0.68210001,4177.2,4177.1,17.48898531]
[1758723781189,0.68210001,4177.2,4177.1,23.51898531]
[1758723781549,0.24690001,4177.2,4177.1,23.51898531]
[1758723781740,0.00020001,4177.2,4177.1,23.51898531]
[1758723782076,0.24690001,4177.2,4177.1,23.51898531]
[1758723782575,0.24690001,4177.2,4177.1,17.48898531]
[1758723782875,0.68210001,4177.2,4177.1,23.51898531]
[1758723784455,0.68210001,4177.2,4177.1,21.1249799]
[1758723784686,0.68210001,4177.2,4177.1,23.51898531]
[1758723785204,0.24690001,4177.2,4177.1,23.51898531]
[1758723785479,0.00020001,4177.2,4177.1,23.51898531]
[1758723786055,0.00020001,4177.2,4177.1,26.14877146]
[1758723786377,0.00020001,4177.2,4177.1,25.91027146]
[1758723786597,0.00020001,4177.2,4177.1,26.14877146]
[1758723786968,0.00020001,4177.2,4177.1,25.91027146]
[1758723787461,0.00020001,4177.2,4177.1,26.14877146]
[1758723788280,0.51727944,4177.2,4177.1,26.14877146]
[1758723788870,0.51727944,4177.2,4177.1,25.91027146]
[1758723789271,0.00020001,4177.2,4177.1,25.91027146]
[1758723790387,0.51736338,4177.2,4177.1,25.91027146]
[1758723790592,1.19926338,4177.2,4177.1,23.51898531]
[1758723790883,1.19926338,4177.2,4177.1,23.51798531]
[1758723793863,0.00020001,4177.2,4177.1,23.51798531]
[1758723794892,0.00020001,4177.2,4177.1,23.04220541]
[1758723796612,0.00040001,4177.4,4177.3,2.39389079]
[1758723796815,0.51785582,4177.4,4177.3,6.42889079]
[1758723797100,1.19755582,4177.4,4177.3,8.42289079]
[1758723797300,1.19755582,4177.4,4177.3,22.92289079]
[1758723798220,0.74455582,4177.4,4177.3,22.92289079]
[1758723798427,0.74455582,4177.4,4177.3,14.5]
[1758723798428,1.19756642,4177.4,4177.3,14.5]
[1758723798720,1.38140018,4177.4,4177.3,20.529]
[1758723799026,2.02117132,4177.4,4177.3,20.529]
[1758723799196,1.38140018,4177.4,4177.3,20.529]
[1758723800284,1.19756642,4177.4,4177.3,20.529]
[1758723800683,0.51786642,4177.4,4177.3,20.529]
[1758723800932,0.00040001,4177.4,4177.3,23.04209079]
[1758723804180,0.68010001,4177.4,4177.3,23.04209079]
[1758723804302,0.22710001,4177.4,4177.3,23.04209079]
[1758723804889,0.00040001,4177.4,4177.3,34.89507982]
[1758723805237,0.00040001,4177.4,4177.3,35.56707982]
[1758723805402,0.00040001,4177.4,4177.3,25.43337694]
[1758723805602,0.00040001,4177.4,4177.3,19.40437694]
[1758723805807,0.00040001,4177.4,4177.3,23.04209079]
[1758723808109,0.00040001,4177.4,4177.3,33.17579367]
[1758723808507,0.00040001,4177.4,4177.3,36.96779367]
[1758723808942,0.00040001,4177.4,4177.3,26.83409079]
[1758723809129,0.00040001,4177.4,4177.3,36.96779367]
[1758723809335,0.00040001,4177.4,4177.3,28.98517694]
[1758723811110,0.00040001,4177.4,4177.3,22.28517694]
[1758723811307,0.00040001,4177.4,4177.3,28.31217694]
[1758723811528,0.00040001,4177.4,4177.3,22.28517694]
[1758723811707,0.00040001,4177.4,4177.3,28.31217694]
[1758723812311,0.00040001,4177.4,4177.3,25.92089079]
[1758723813039,0.00040001,4177.4,4177.3,19.89389079]
[1758723813238,0.00040001,4177.4,4177.3,16.89389079]
[1758723813469,0.68010001,4177.4,4177.3,18.88689079]
[1758723813613,0.68010001,4177.4,4177.3,14.5]
[1758723813811,0.68010001,4177.4,4177.3,20.527]
[1758723814108,0.68010001,4177.4,4177.3,14.5]
[1758723814303,0.68010001,4177.4,4177.3,20.527]
[1758723814304,1.03929603,4177.4,4177.3,20.527]
[1758723815669,0.68010001,4177.4,4177.3,20.527]
[1758723816881,0.68010001,4177.4,4177.3,14.5]
[1758723817081,0.68010001,4177.4,4177.3,18.534]
[1758723817601,6.59107015,4177.4,4177.3,14.5]
[1758723817778,8.37448574,4177.4,4177.3,18.534]
[1758723817987,9.01425688,4177.4,4177.3,18.534]
[1758723818151,8.37448574,4177.4,4177.3,18.534]
[1758723818481,9.01425688,4177.4,4177.3,14.5]
[1758723818871,9.01425688,4177.4,4177.3,18.534]
[1758723818872,8.37448574,4177.4,4177.3,18.534]
[1758723819243,9.01978579,4177.4,4177.3,18.534]
[1758723820574,7.2363702,4177.4,4177.3,18.534]
[1758723821151,6.59107015,4177.4,4177.3,18.534]
[1758723821587,14.76974131,4177.4,4177.3,18.534]
[1758723821782,14.76974131,4177.4,4177.3,4.034]
[1758723821783,15.56174131,4177.4,4177.3,4.034]
[1758723821992,6.18594809,4177.2,4177.1,4.036]
[1758723822189,7.56308228,4177.2,4177.1,0.002]
[1758723822350,8.25298228,4177.2,4177.1,0.002]
[1758723823714,8.25218228,4177.2,4177.1,0.002]
[1758723824289,7.39218475,4177.2,4177.1,0.002]
[1758723824611,9.69544858,4177.2,4177.1,0.002]
[1758723828290,8.03557508,4177.2,4177.1,0.002]
[1758723828601,7.39218475,4177.2,4177.1,0.002]
[1758723829730,5.91028475,4177.2,4177.1,0.002]
[1758723830233,6.14898475,4177.2,4177.1,0.002]
[1758723830431,6.60018475,4177.2,4177.1,0.002]
[1758723830642,8.38183356,4177.2,4177.1,4.036]
[1758723831796,9.17383356,4177.2,4177.1,4.036]
[1758723832203,9.17383356,4177.2,4177.1,0.002]
[1758723832696,7.69193356,4177.2,4177.1,0.002]
[1758723832901,3.51713666,4177.2,4177.1,0.002]
[1758723833097,5.39394809,4177.2,4177.1,0.002]
[1758723833303,5.63264809,4177.2,4177.1,0.002]
[1758723833533,6.14978475,4177.2,4177.1,0.002]
[1758723833739,5.91108475,4177.2,4177.1,0.002]
[1758723834533,3.0,4177.2,4177.1,0.7094]
[1758723834736,0.1192,4177.3,4177.1,0.7094]
[1758723834944,0.1192,4177.3,4177.2,4.034]
[1758723835238,0.1192,4177.3,4177.2,4.272]
[1758723835450,0.1192,4177.3,4177.2,4.7414]
[1758723836401,0.1192,4177.3,4177.2,7.15042008]
[1758723836601,0.1192,4177.3,4177.2,9.52663424]
[1758723836846,0.1192,4177.3,4177.2,7.13268615]
[1758723837505,0.1192,4177.3,4177.2,4.7414]
[1758723837701,0.1192,4177.3,4177.2,4.75647199]
[1758723838108,0.1192,4177.3,4177.2,19.25647199]
[1758723838349,0.1192,4177.3,4177.2,21.63534809]
[1758723838513,0.1192,4177.3,4177.2,19.2414]
[1758723838702,0.1192,4177.3,4177.2,18.772]
[1758723839114,0.1192,4177.3,4177.2,19.2414]
[1758723840045,0.1192,4177.3,4177.2,18.772]
[1758723840419,2.51309079,4177.3,4177.2,14.5]
[1758723840757,12.69585984,4177.3,4177.2,18.533]
[1758723840917,13.21052284,4177.3,4177.2,18.533]
[1758723841849,5.03185168,4177.3,4177.2,18.533]
[1758723842023,3.72325379,4177.3,4177.2,18.533]
[1758723843241,3.72325379,4177.3,4177.2,14.5]
[1758723843443,3.72325379,4177.3,4177.2,18.533]
[1758723843746,3.72325379,4177.3,4177.2,14.5]
[1758723843945,3.20859079,4177.3,4177.2,18.533]
[1758723844149,0.35,4177.3,4177.2,18.533]
[1758723844322,2.51309079,4177.3,4177.2,18.533]
[1758723844724,0.1192,4177.3,4177.2,18.533]
[1758723844910,2.97779079,4177.3,4177.2,18.533]
[1758723845110,5.19412445,4177.3,4177.2,18.533]
[1758723845315,3.72425379,4177.3,4177.2,18.533]
[1758723845560,1.330363,4177.3,4177.2,18.533]
[1758723845865,3.72425379,4177.3,4177.2,18.533]
[1758723847087,3.72425379,4177.3,4177.1,0.002]
[1758723847088,0.792,4177.2,4177.1,0.002]
[1758723847236,16.75552454,4177.2,4177.1,0.002]
[1758723847435,5.39423468,4176.7,4176.6,0.002]
[1758723847665,14.87956884,4176.7,4176.6,0.002]
[1758723847845,3.18646399,4176.3,4176.2,0.002]
[1758723848060,3.18646399,4176.3,4175.8,0.002]
[1758723848061,3.792,4176.2,4175.8,0.002]
[1758723848238,3.792,4176.2,4175.0,0.002]
[1758723848239,6.18692276,4175.5,4175.4,1e-08]
[1758723848442,18.91414759,4175.5,4175.4,1e-08]
[1758723848747,19.60964759,4175.5,4175.4,1e-08]
[1758723849070,20.899553,4175.5,4175.4,1e-08]